lending/lending_fUSD_20250501
["ID","MTS","AMOUNT","RATE_DAILY","PERIOD"]
[359509405,1746078662389,-500.0,0.00043835,31]
[359509406,1746078662398,-500.0,0.00043835,31]
[359509407,1746078662408,-450.0,0.00043835,2]
[359509408,1746078662418,-500.0,0.00043835,31]
[359509409,1746078662427,-500.0,0.00043835,31]
[359509410,1746078662437,-500.0,0.00043835,31]
[359509411,1746078662446,-500.0,0.00043835,31]
[359509412,1746078662455,-500.0,0.00043835,31]
[359509413,1746078662465,-500.0,0.00043835,31]
[359509414,1746078662478,-500.0,0.00043835,31]
[359509415,1746078662487,-500.0,0.00043835,31]
[359509416,1746078662497,-500.0,0.00043835,31]
[359509417,1746078662506,-500.0,0.00043835,31]
[359509418,1746078662516,-199.54321076,0.00043835,31]
[359509419,1746078662526,-450.0,0.00043835,2]
[359509420,1746078662536,-450.0,0.00043835,2]
[359509421,1746078662546,-576.32,0.00043835,2]
[359509422,1746078662556,-450.0,0.00043835,2]
[359509423,1746078662565,-1082.3,0.00043835,31]
[359509424,1746078662575,-1082.3,0.00043835,31]
[359509425,1746078662584,-1082.3,0.00043835,31]
[359509426,1746078662593,-1082.3,0.00043835,31]
[359509427,1746078662603,-1082.3,0.00043835,31]
[359509428,1746078662612,-1082.3,0.00043835,31]
[359509429,1746078662622,-1082.3,0.00043835,31]
[359509430,1746078662632,-1082.3,0.00043835,31]
[359509431,1746078662642,-1082.3,0.00043835,31]
[359509432,1746078662651,-1082.3,0.00043835,31]
[359509433,1746078662661,-1082.3,0.00043835,31]
[359509434,1746078662671,-1082.3,0.00043835,31]
[359509435,1746078662682,-1082.3,0.00043835,31]
[359509436,1746078662692,-1082.3,0.00043835,31]
[359509437,1746078662702,-1082.3,0.00043835,31]
[359509438,1746078662717,-1082.3,0.00043835,31]
[359509439,1746078662727,-1082.3,0.00043835,31]
[359509440,1746078662737,-1082.3,0.00043835,31]
[359509441,1746078662748,-1082.3,0.00043835,31]
[359509442,1746078662758,-1082.3,0.00043835,31]
[359509443,1746078662767,-1082.3,0.00043835,31]
[359509444,1746078662777,-1082.3,0.00043835,31]
[359509445,1746078662787,-1082.3,0.00043835,31]
[359509446,1746078662796,-1082.34877916,0.00043835,31]
[359509447,1746078662806,-500.0,0.00043835,31]
[359509448,1746078662817,-500.0,0.00043835,31]
[359509449,1746078662827,-500.0,0.00043835,31]
[359509450,1746078662837,-500.0,0.00043835,31]
[359509451,1746078662846,-500.0,0.00043835,31]
[359509452,1746078662856,-500.0,0.00043835,31]
[359509453,1746078662866,-500.0,0.00043835,31]
[359509454,1746078662876,-500.0,0.00043835,31]
[359509455,1746078662887,-318.08915284,0.00043835,31]
[359509456,1746078662897,-287.5586945,0.00043835,15]
[359509457,1746078662906,-500.0,0.00043835,2]
[359509458,1746078662916,-500.0,0.00043835,2]
[359509459,1746078662926,-500.0,0.00043835,2]
[359509460,1746078662935,-500.0,0.00043835,2]
[359509461,1746078662945,-500.0,0.00043835,2]
[359509462,1746078662955,-500.0,0.00043835,2]
[359509463,1746078662966,-500.0,0.00043835,2]
[359509464,1746078662976,-500.0,0.00043835,2]
[359509465,1746078662985,-500.0,0.00043835,2]
[359509466,1746078662994,-500.0,0.00043835,2]
[359509467,1746078663004,-500.0,0.00043835,2]
[359509468,1746078663014,-500.0,0.00043835,2]
[359509469,1746078663024,-500.0,0.00043835,2]
[359509470,1746078663034,-500.0,0.00043835,2]
[359509471,1746078663045,-500.0,0.00043835,2]
[359509472,1746078663056,-622.42034215,0.00043835,2]
[359509473,1746078663066,-151.0,0.00043835,14]
[359509474,1746078663076,-500.0,0.00043835,20]
[359509475,1746078663087,-181.17,0.00043835,120]
[359509476,1746078663098,-1699.57,0.00043835,120]
[359509477,1746078663108,-207.07129358,0.00043835,31]
[359509478,1746078663117,-500.0,0.00043835,31]
[359509479,1746078663127,-1002.912,0.00043835,2]
[359509480,1746078663137,-408.0016555,0.00043836,10]
[359509481,1746078663147,-518.69371988,0.00043836,31]
[359509482,1746078663157,-518.69371988,0.00043836,31]
[359509483,1746078663167,-518.69371988,0.00043836,31]
[359509484,1746078663177,-518.69371988,0.00043836,31]
[359509485,1746078663188,-518.69371988,0.00043836,31]
[359509486,1746078663197,-518.69371988,0.00043836,31]
[359509487,1746078663207,-518.69371988,0.00043836,31]
[359509488,1746078663216,-518.69371988,0.00043836,31]
[359509489,1746078663226,-518.69371988,0.00043836,31]
[359509490,1746078663236,-518.69371988,0.00043836,31]
[359509491,1746078663245,-518.69371988,0.00043836,31]
[359509492,1746078663255,-518.69371988,0.00043836,31]
[359509493,1746078663265,-518.69371988,0.00043836,31]
[359509494,1746078663275,-518.69371988,0.00043836,31]
[359509495,1746078663285,-518.69371988,0.00043836,31]
[359509496,1746078663294,-518.69371988,0.00043836,31]
[359509497,1746078663303,-518.69371988,0.00043836,31]
[359509498,1746078663313,-518.69371988,0.00043836,31]
[359509499,1746078663323,-518.69371988,0.00043836,31]
[359509500,1746078663332,-535.98351055,0.00043836,31]
[359509501,1746078663341,-535.98351055,0.00043836,31]
[359509502,1746078663351,-535.98351055,0.00043836,31]
[359509503,1746078663360,-535.98351055,0.00043836,31]
[359509504,1746078663370,-535.98351055,0.00043836,31]
[359509505,1746078663380,-535.98351055,0.00043836,31]
[359509506,1746078663389,-535.98351055,0.00043836,31]
[359509507,1746078663399,-500.0,0.00043836,29]
[359509508,1746078663409,-150.0,0.00043856,30]
[359509509,1746078663419,-2000.0,0.0004388,120]
[359509510,1746078663429,-2189.40758869,0.000439,30]
[359509511,1746078663439,-2000.0,0.000439,30]
[359509512,1746078663448,-2000.0,0.000439,30]
[359509513,1746078663458,-2000.0,0.000439,30]
[359509514,1746078663472,-2000.0,0.000439,30]
[359509515,1746078663481,-2000.0,0.000439,30]
[359509516,1746078663491,-2000.0,0.000439,30]
[359509517,1746078663501,-2000.0,0.000439,30]
[359509518,1746078663511,-2000.0,0.000439,30]
[359509519,1746078663520,-2000.0,0.000439,30]
[359509520,1746078663530,-151.0,0.000439,14]
[359509521,1746078663541,-151.0,0.000439,14]
[359509522,1746078663551,-166.497068,0.000439,14]
[359509523,1746078663560,-166.497068,0.000439,14]
[359509524,1746078663570,-151.0,0.000439,14]
[359509525,1746078663580,-333.188523,0.000439,14]
[359509526,1746078663589,-333.188523,0.000439,14]
[359509527,1746078663598,-151.0,0.000439,14]
[359509528,1746078663608,-188.82,0.0004398,120]
[359509529,1746078663618,-150.5,0.0004399,120]
[359509530,1746078663628,-150.0,0.00044,30]
[359509531,1746078663637,-40000.0,0.00044,60]
[359509532,1746078663646,-1460.54962648,0.00044,120]
[359509533,1746078663656,-1391.36646848,0.00044,10]
[359509534,1746078663665,-197.0,0.00044,45]
[359509535,1746078663674,-745.05,0.00044,120]
[359509536,1746078663683,-500.0,0.00044,120]
[359509537,1746078663693,-300.0,0.00044,120]
[359509538,1746078663703,-900.0,0.00044,45]
[359509539,1746078663713,-153.70925441,0.00044,60]
[359509540,1746078663723,-151.0,0.00044,30]
[359509541,1746078663733,-923.0,0.00044088,2]
[359509542,1746078663742,-878.0,0.00044088,2]
[359509543,1746078663752,-305.85558,0.00044088,30]
[359509544,1746078663761,-152.11618671,0.00044098,120]
[359509545,1746078663771,-1313.0,0.000441,30]
[359509546,1746078663781,-500.0,0.00044109,31]
[359509547,1746078663791,-450.0,0.00044109,2]
[359509548,1746078663800,-450.0,0.00044109,2]
[359509549,1746078663810,-450.0,0.00044109,2]
[359509550,1746078663819,-576.32,0.00044109,2]
[359509551,1746078663829,-450.0,0.00044109,2]
[359509552,1746078663838,-310.79999712,0.00044109,20]
[359509553,1746078663847,-500.0,0.00044109,120]
[359509554,1746078663857,-1614.24921844,0.0004411,120]
[359509555,1746078663866,-150.0,0.00044143,30]
[359509556,1746078663876,-5797.0118037,0.00044176,50]
[359509557,1746078663886,-357.6762453,0.00044189,2]
[359509558,1746078663895,-150.0,0.00044286,30]
[359509559,1746078663905,-305.85558,0.00044288,30]
[359509560,1746078663915,-159.96530643,0.00044289,120]
[359509561,1746078663924,-904.36,0.00044295,2]
[359509562,1746078663934,-4176.96,0.000443,14]
[359509563,1746078663944,-300.53,0.00044379,30]
[359509564,1746078663953,-150.0,0.00044379,30]
[359509565,1746078663963,-300.0,0.00044379,30]
[359509566,1746078663972,-300.0,0.00044379,30]
[359509567,1746078663981,-1153.32,0.00044379,30]
[359509568,1746078663991,-450.92,0.00044379,30]
[359509569,1746078664000,-162.05,0.00044379,30]
[359509570,1746078664010,-703.18,0.00044379,30]
[359509571,1746078664019,-1153.32,0.00044379,30]
[359509572,1746078664028,-150.0,0.00044379,30]
[359509573,1746078664038,-150.0,0.00044379,30]
[359509574,1746078664047,-451.39,0.00044379,30]
[359509575,1746078664056,-162.16,0.00044379,30]
[359509576,1746078664066,-351.92,0.00044379,30]
[359509577,1746078664076,-150.0,0.00044379,30]
[359509578,1746078664085,-1000.0,0.00044379,10]
[359509579,1746078664095,-500.0,0.00044383,31]
[359509580,1746078664105,-450.0,0.00044383,2]
[359509581,1746078664115,-450.0,0.00044383,2]
[359509582,1746078664124,-450.0,0.00044383,2]
[359509583,1746078664133,-576.32,0.00044383,2]
[359509584,1746078664142,-450.0,0.00044383,2]
[359509585,1746078664151,-466.64985902,0.0004439,120]
[359509586,1746078664161,-3600.0,0.000444,2]
[359509587,1746078664171,-150.0,0.00044412,2]
[359509588,1746078664180,-150.0,0.0004443,30]
[359509589,1746078664189,-220.24583493,0.0004444,120]
[359509590,1746078664199,-305.85558,0.00044488,30]
[359509591,1746078664208,-1313.0,0.0004455,30]
[359509592,1746078664217,-150.0,0.00044573,30]
[359509593,1746078664227,-150.0,0.00044585,120]
[359509594,1746078664236,-865.16,0.00044589,30]
[359509595,1746078664245,-1494.26,0.00044589,30]
[359509596,1746078664255,-550.0,0.00044644,3]
[359509597,1746078664264,-500.0,0.00044657,31]
[359509598,1746078664274,-450.0,0.00044657,2]
[359509599,1746078664283,-450.0,0.00044657,2]
[359509600,1746078664294,-450.0,0.00044657,2]
[359509601,1746078664304,-576.32,0.00044657,2]
[359509602,1746078664313,-450.0,0.00044657,2]
[359509603,1746078664512,-1699.57,0.00044657,120]
[359509604,1746078664523,-473.60731255,0.00044657,120]
[359509605,1746078664533,-152.11618671,0.0004467,120]
[359509606,1746078664547,-381.3201797,0.00044675,4]
[359509607,1746078664561,-305.85558,0.00044688,30]
[359509608,1746078664572,-160.0,0.000447,75]
[359509609,1746078664582,-1000.0,0.00044701,2]
[359509610,1746078664592,-150.0,0.00044716,30]
[359509611,1746078664602,-500.0,0.00044767,30]
[359509612,1746078664612,-315.08,0.000448,120]
[359509613,1746078664622,-2000.0,0.00044824,31]
[359509614,1746078664632,-150.0,0.0004486,30]
[359509615,1746078664642,-305.85558,0.00044888,30]
[359509616,1746078664652,-573.15296428,0.000449,30]
[359509617,1746078664661,-312.97,0.000449,120]
[359509618,1746078664671,-246.41118831,0.000449,120]
[359509619,1746078664682,-150.0,0.00044904,120]
[359509620,1746078664692,-7557.539273,0.00044916,7]
[359509621,1746078664702,-2825.839978,0.00044916,7]
[359509622,1746078664713,-1435.371012,0.00044916,7]
[359509623,1746078664723,-152.0,0.0004492,11]
[359509624,1746078664733,-3990.95744689,0.00044927,17]
[359509625,1746078664743,-500.0,0.00044931,31]
[359509626,1746078664753,-450.0,0.00044931,2]
[359509627,1746078664763,-450.0,0.00044931,2]
[359509628,1746078664773,-450.0,0.00044931,2]
[359509629,1746078664782,-576.32,0.00044931,2]
[359509630,1746078664795,-450.0,0.00044931,2]
[359509631,1746078664806,-2110.0,0.00044952,30]
[359509632,1746078664816,-6060.1210054,0.00044969,2]
[359509633,1746078664825,-10504.9469649,0.00044969,2]
[359509634,1746078664835,-2006.9003016,0.00044969,2]
[359509635,1746078664845,-2697.2717483,0.00044969,2]
[359509636,1746078664855,-1790.2820667,0.00044969,2]
[359509637,1746078664865,-71664.5622292,0.00044969,2]
[359509638,1746078664874,-47566.5014676,0.00044969,2]
[359509639,1746078664884,-229.3399162,0.00044969,2]
[359509640,1746078664893,-1027.0,0.00045,60]
[359509641,1746078664903,-500.0,0.00045,120]
[359509642,1746078664912,-95000.0,0.00045,15]
[359509643,1746078664921,-196.0,0.00045,120]
[359509644,1746078664931,-83000.0,0.00045,90]
[359509645,1746078664940,-197.0,0.00045,120]
[359509646,1746078664950,-508.79486563,0.00045,120]
[359509647,1746078664959,-2153.7452756,0.00045,120]
[359509648,1746078664968,-175.22991242,0.00045,120]
[359509649,1746078664978,-2163.0857209,0.00045,120]
[359509650,1746078664987,-1071.22088999,0.00045,30]
[359509651,1746078664997,-500.0,0.00045,30]
[359509652,1746078665007,-1645854.431856,0.00045,9]
[359509653,1746078665016,-188.4965938,0.00045,120]
[359509654,1746078665026,-21322.63,0.00045,30]
[359509655,1746078665035,-1647.05,0.00045,120]
[359509656,1746078665045,-1000.54,0.00045,120]
[359509657,1746078665054,-271.93445903,0.00045,120]
[359509658,1746078665063,-900.0,0.00045,46]
[359509659,1746078665073,-150.0,0.00045,60]
[359509660,1746078665083,-406.72046804,0.00045,60]
[359509661,1746078665092,-371.39507623,0.00045,7]
[359509662,1746078665101,-506.23,0.00045,12]
[359509663,1746078665110,-150.0,0.00045,2]
[359509664,1746078665119,-207.98934915,0.00045,60]
[359509665,1746078665128,-1215.07754014,0.00045,120]
[359509666,1746078665137,-2000.0,0.00045,120]
[359509667,1746078665146,-544.0,0.00045,90]
[359509668,1746078665155,-152.52,0.00045,85]
[359509669,1746078665164,-782.86,0.00045,120]
[359509670,1746078665174,-2125.38657759,0.00045,30]
[359509671,1746078665183,-154.22041837,0.00045,2]
[359509672,1746078665192,-1425.23,0.00045,120]
[359509673,1746078665201,-156.46642512,0.00045,30]
[359509674,1746078665210,-13695.52472184,0.00045,30]
[359509675,1746078665219,-1893.36270342,0.00045,30]
[359509676,1746078665228,-1000.0,0.00045,120]
[359509677,1746078665237,-250.0,0.00045,30]
[359509678,1746078665246,-250.0,0.00045,30]
[359509679,1746078665255,-250.0,0.00045,30]
[359509680,1746078665264,-250.0,0.00045,30]
[359509681,1746078665273,-250.0,0.00045,30]
[359509682,1746078665282,-250.0,0.00045,30]
[359509683,1746078665294,-250.0,0.00045,30]
[359509684,1746078665303,-250.0,0.00045,30]
[359509685,1746078665312,-250.0,0.00045,30]
[359509686,1746078665321,-250.0,0.00045,30]
[359509687,1746078665331,-314.905682,0.00045,14]
[359509688,1746078665340,-314.905682,0.00045,14]
[359509689,1746078665349,-314.905682,0.00045,14]
[359509690,1746078665359,-314.905682,0.00045,14]
[359509691,1746078665368,-151.0,0.00045,14]
[359509692,1746078665377,-151.0,0.00045,14]
[359509693,1746078665387,-151.0,0.00045,14]
[359509694,1746078665396,-151.0,0.00045,14]
[359509695,1746078665405,-1313.0,0.00045,30]
[359509696,1746078665415,-599.351059,0.00045,14]
[359509697,1746078665424,-599.351059,0.00045,14]
[359509698,1746078665433,-599.351059,0.00045,14]
[359509699,1746078665442,-599.351059,0.00045,14]
[359509700,1746078665451,-198.713687,0.00045,14]
[359509701,1746078665461,-198.713692,0.00045,14]
[359509702,1746078665472,-374.259646,0.00045,14]
[359509703,1746078665482,-374.259636,0.00045,14]
[359509704,1746078665491,-175.663975,0.00045,14]
[359509705,1746078665501,-175.663975,0.00045,14]
[359509706,1746078665511,-175.663975,0.00045,14]
[359509707,1746078665521,-175.663975,0.00045,14]
[359509708,1746078665530,-151.0,0.00045,14]
[359509709,1746078665539,-410.19464046,0.00045,30]
[359509710,1746078665550,-275.675757,0.00045,14]
[359509711,1746078665559,-275.675757,0.00045,14]
[359509712,1746078665569,-275.675757,0.00045,14]
[359509713,1746078665578,-275.675757,0.00045,14]
[359509714,1746078665587,-151.0,0.00045,14]
[359509715,1746078665596,-324.438898,0.00045,14]
[359509716,1746078665605,-324.438898,0.00045,14]
[359509717,1746078665614,-151.0,0.00045,14]
[359509718,1746078665624,-166.497068,0.00045,14]
[359509719,1746078665633,-166.497068,0.00045,14]
[359509720,1746078665643,-151.0,0.00045,14]
[359509721,1746078665653,-151.0,0.00045,14]
[359509722,1746078665663,-151.0,0.00045,14]
[359509723,1746078665672,-333.188523,0.00045,14]
[359509724,1746078665682,-333.188523,0.00045,14]
[359509725,1746078665691,-151.0,0.00045,14]
[359509726,1746078665701,-473.032953,0.00045,14]
[359509727,1746078665711,-473.032953,0.00045,14]
[359509728,1746078665720,-208.642372,0.00045,14]
[359509729,1746078665731,-553.064693,0.00045,14]
[359509730,1746078665741,-208.642372,0.00045,14]
[359509731,1746078665751,-553.064693,0.00045,14]
[359509732,1746078665761,-151.0,0.00045,14]
[359509733,1746078665771,-151.0,0.00045,14]
[359509734,1746078665780,-151.0,0.00045,14]
[359509735,1746078665791,-151.0,0.00045,14]
[359509736,1746078665800,-151.0,0.00045,14]
[359509737,1746078665810,-151.0,0.00045,14]
[359509738,1746078665820,-151.0,0.00045,14]
[359509739,1746078665829,-151.0,0.00045,14]
[359509740,1746078665839,-194.72139,0.00045,14]
[359509741,1746078665848,-414113.96,0.00045,120]
[359509742,1746078665858,-151.0,0.00045,14]
[359509743,1746078665868,-151.0,0.00045,14]
[359509744,1746078665877,-269.898059,0.00045,14]
[359509745,1746078665887,-151.0,0.00045,14]
[359509746,1746078665896,-151.0,0.00045,14]
[359509747,1746078665906,-236.764178,0.00045,14]
[359509748,1746078665916,-236.764178,0.00045,14]
[359509749,1746078665925,-236.764178,0.00045,14]
[359509750,1746078665935,-236.764178,0.00045,14]
[359509751,1746078665945,-1000.0,0.00045,28]
[359509752,1746078665955,-1000.0,0.00045,28]
[359509753,1746078665965,-1000.0,0.00045,28]
[359509754,1746078665974,-1000.0,0.00045,28]
[359509755,1746078665984,-1000.0,0.00045,28]
[359509756,1746078665994,-1000.0,0.00045,28]
[359509757,1746078666004,-1000.0,0.00045,28]
[359509758,1746078666014,-1100.222062,0.00045,28]
[359509759,1746078666024,-502.714282,0.00045,14]
[359509760,1746078666034,-502.714282,0.00045,14]
[359509761,1746078666047,-502.714282,0.00045,14]
[359509762,1746078666057,-265.566425,0.00045,14]
[359509763,1746078666067,-502.714282,0.00045,14]
[359509764,1746078666076,-265.566425,0.00045,14]
[359509765,1746078666086,-265.566425,0.00045,14]
[359509766,1746078666095,-265.566425,0.00045,14]
[359509767,1746078666105,-1124.978792,0.00045,14]
[359509768,1746078666114,-1124.978792,0.00045,14]
[359509769,1746078666124,-289.06198421,0.00045,120]
[359509770,1746078666138,-950.0,0.00045,2]
[359509771,1746078666149,-297.09274246,0.00045,120]
[359509772,1746078666163,-358.496672,0.00045,14]
[359509773,1746078666172,-358.496672,0.00045,14]
[359509774,1746078666182,-358.496672,0.00045,14]
[359509775,1746078666192,-358.496672,0.00045,14]
[359509776,1746078666202,-151.0,0.00045,30]
[359509777,1746078666213,-151.0,0.00045,14]
[359509778,1746078666223,-151.0,0.00045,14]
[359509779,1746078666233,-220.216538,0.00045,14]
[359509780,1746078666243,-151.0,0.00045,14]
[359509781,1746078666252,-220.216538,0.00045,14]
[359509782,1746078666262,-151.0,0.00045,14]
[359509783,1746078666272,-151.0,0.00045,14]
[359509784,1746078666281,-232.98730438,0.00045,120]
[359509785,1746078666296,-189.629939,0.00045,14]
[359509786,1746078666306,-189.629939,0.00045,14]
[359509787,1746078666315,-151.0,0.00045,14]
[359509788,1746078666325,-151.0,0.00045,14]
[359509789,1746078666335,-2698.719256,0.00045,14]
[359509790,1746078666346,-2698.719256,0.00045,14]
[359509791,1746078666355,-151.0,0.00045,14]
[359509792,1746078666365,-150.0,0.00045003,30]
[359509793,1746078666375,-150.0,0.0004503,120]
[359509794,1746078666384,-5797.0118037,0.00045038,51]
[359509795,1746078666394,-500.0,0.00045041,30]
[359509796,1746078666404,-159.96530643,0.00045052,120]
[359509797,1746078666414,-305.85558,0.00045088,30]
[359509798,1746078666425,-150.0,0.00045146,30]
[359509799,1746078666435,-263.35211862,0.00045187,30]
[359509800,1746078666446,-451.39,0.00045201,30]
[359509801,1746078666457,-162.16,0.00045201,30]
[359509802,1746078666469,-150.0,0.00045201,30]
[359509803,1746078666481,-351.92,0.00045201,30]
[359509804,1746078666491,-351.92,0.00045201,30]
[359509805,1746078666502,-162.16,0.00045201,30]
[359509806,1746078666513,-913.07,0.00045201,30]
[359509807,1746078666524,-500.0,0.00045205,31]
[359509808,1746078666534,-450.0,0.00045205,2]
[359509809,1746078666544,-450.0,0.00045205,2]
[359509810,1746078666555,-583.30243827,0.00045205,2]
[359509811,1746078666565,-576.32,0.00045205,2]
[359509812,1746078666575,-556.58548415,0.00045205,2]
[359509813,1746078666585,-181.17,0.00045205,120]
[359509814,1746078666595,-150.0,0.00045205,2]
[359509815,1746078666604,-176.59,0.00045205,30]
[359509816,1746078666614,-152.11618671,0.00045243,120]
[359509817,1746078666626,-150.0,0.00045258,120]
[359509818,1746078666637,-183.08037766,0.0004526,7]
[359509819,1746078666646,-451.39,0.00045261,30]
[359509820,1746078666656,-451.39,0.00045261,30]
[359509821,1746078666666,-450.15,0.00045261,30]
[359509822,1746078666676,-150.0,0.00045261,30]
[359509823,1746078666685,-305.85558,0.00045288,30]
[359509824,1746078666695,-150.0,0.0004529,30]
[359509825,1746078666704,-500.0,0.00045315,30]
[359509826,1746078666714,-150.0,0.00045433,30]
[359509827,1746078666723,-1313.0,0.0004545,30]
[359509828,1746078666733,-2110.0,0.00045452,30]
[359509829,1746078666743,-450.0,0.00045464,3]
[359509830,1746078666753,-500.0,0.00045479,31]
[359509831,1746078666762,-450.0,0.00045479,2]
[359509832,1746078666772,-170.03456897,0.00045479,2]
[359509833,1746078666781,-576.32,0.00045479,2]
[359509834,1746078666792,-1699.57,0.00045479,120]
[359509835,1746078666802,-305.85558,0.00045488,30]
[359509836,1746078666811,-370.91026638,0.00045558,2]
[359509837,1746078666821,-150.0,0.00045576,30]
[359509838,1746078666831,-500.0,0.00045589,30]
[359509839,1746078666841,-23474.19,0.00045595,14]
[359509840,1746078666851,-275455.11,0.00045595,14]
[359509841,1746078666861,-69831.45,0.00045595,14]
[359509842,1746078666871,-1270.73,0.00045595,14]
[359509843,1746078666881,-35751.14,0.00045595,14]
[359509844,1746078666891,-5868.85446534,0.00045595,14]
[359509845,1746078667481,-1085.9079446,0.00045595,14]
[359509846,1746078669282,-0.01530883,0.000329,2]
[359509847,1746078669631,-151.0,0.00026774,2]
[359509848,1746078669641,-455.93,0.00030411,2]
[359509849,1746078669650,-150.0,0.00032517,2]
[359509850,1746078669659,-150.0,0.00032607,2]
[359509851,1746078669669,-150.0,0.00032624,2]
[359509852,1746078669678,-150.0,0.00032635,2]
[359509853,1746078669687,-150.0,0.00032635,2]
[359509854,1746078669697,-139.28455494,0.00032644,2]
[359509855,1746078669708,-10.71544506,0.00032644,2]
[359509856,1746078669718,-150.0,0.00032656,2]
[359509857,1746078669728,-150.0,0.00032657,2]
[359509858,1746078669738,-150.0,0.00032659,2]
[359509859,1746078669747,-58.56955494,0.00032698,2]
[359509860,1746078670143,-91.43044506,0.00032698,2]
[359509861,1746078670155,-150.0,0.00032701,2]
[359509862,1746078670165,-150.0,0.00032702,2]
[359509863,1746078670175,-150.0,0.00032716,2]
[359509864,1746078670186,-150.0,0.00032719,2]
[359509865,1746078670195,-150.0,0.0003272,2]
[359509866,1746078670204,-150.0,0.00032736,2]
[359509867,1746078670215,-150.0,0.00032741,2]
[359509868,1746078670224,-150.0,0.0003275,2]
[359509869,1746078670233,-150.0,0.0003275,2]
[359509870,1746078670243,-150.0,0.00032764,2]
[359509871,1746078670253,-150.0,0.00032778,2]
[359509872,1746078670263,-150.0,0.00032791,2]
[359509873,1746078670272,-150.0,0.000328,2]
[359509874,1746078670282,-150.0,0.00032833,2]
[359509875,1746078670292,-150.0,0.00032835,2]
[359509876,1746078670301,-150.0,0.00032837,2]
[359509877,1746078670312,-150.0,0.0003284,2]
[359509878,1746078670322,-150.0,0.00032844,2]
[359509879,1746078670332,-150.0,0.00032846,2]
[359509880,1746078670342,-150.0,0.00032853,2]
[359509881,1746078670352,-150.0,0.00032857,2]
[359509882,1746078670362,-150.0,0.00032864,2]
[359509883,1746078670371,-150.0,0.0003287,2]
[359509884,1746078670381,-150.0,0.00032872,2]
[359509885,1746078670391,-852.98469117,0.000329,2]
[359509886,1746078670400,-853.50156006,0.000384,2]
[359509887,1746078670410,-801.26,0.00040751,2]
[359509888,1746078670419,-3784.46083703,0.00045595,14]
[359509889,1746078670435,-1008.82675303,0.00045595,14]
[359509890,1746078670444,-3081.18618633,0.00045595,14]
[359509997,1746079383254,200.0,0.0002,2]
[359509998,1746079383276,1.17,0.0002,2]
[359510262,1746079832110,-409.29,0.000212,2]
[359510263,1746079832123,-200.0,0.00021559,2]
[359510264,1746079832132,-200.0,0.00022609,2]
[359510265,1746079832142,-250.0,0.0002328,2]
[359510266,1746079832153,-167.54066572,0.0002332,2]
[359510267,1746079832163,-200.0,0.0002332,2]
[359510268,1746079832174,-200.0,0.0002332,2]
[359510269,1746079832183,-200.0,0.0002332,2]
[359510270,1746079832193,-302.9,0.00024624,2]
[359510271,1746079832202,-1853.67896989,0.0002463,2]
[359510272,1746079832224,-419.84269477,0.0002463,2]
[359510273,1746079832284,-666.19503,0.0002463,2]